[Event "Live Chess"]
[Site "Chess.com"]
[Date "2011.01.31"]
[Round "-"]
[White "hipposcottimus"]
[Black "wibbler"]
[Result "1-0"]
[CurrentPosition "1k1r3r/pp2bpp1/7p/1P1N4/3P4/3B1P2/P6P/2R3K1 b - -"]
[Timezone "UTC"]
[ECO "C58"]
[ECOUrl "https://www.chess.com/openings/Italian-Game-Knight-Attack-Polerio-Bishop-Check-Line-6...Bd7"]
[UTCDate "2011.01.31"]
[UTCTime "22:30:08"]
[WhiteElo "1649"]
[BlackElo "1440"]
[TimeControl "60"]
[Termination "hipposcottimus won on time"]
[StartTime "22:30:08"]
[EndDate "2011.01.31"]
[EndTime "22:32:07"]
[Link "https://www.chess.com/game/live/93438385"]

1. e4 {[%clk 0:01:00]} 1... e5 {[%clk 0:01:00]} 2. Nf3 {[%clk 0:00:59.3]} 2... Nc6 {[%clk 0:00:59.5]} 3. Bc4 {[%clk 0:00:59]} 3... Nf6 {[%clk 0:00:58.9]} 4. Ng5 {[%clk 0:00:58.4]} 4... d5 {[%clk 0:00:57.4]} 5. exd5 {[%clk 0:00:57.8]} 5... Na5 {[%clk 0:00:56.9]} 6. Bb5+ {[%clk 0:00:56.5]} 6... Bd7 {[%clk 0:00:55.6]} 7. Be2 {[%clk 0:00:55.6]} 7... Nxd5 {[%clk 0:00:53.6]} 8. c4 {[%clk 0:00:53.7]} 8... Qxg5 {[%clk 0:00:51.2]} 9. cxd5 {[%clk 0:00:51.8]} 9... Qe7 {[%clk 0:00:49.9]} 10. O-O {[%clk 0:00:50.3]} 10... O-O-O {[%clk 0:00:48.3]} 11. f4 {[%clk 0:00:49.9]} 11... exf4 {[%clk 0:00:46.4]} 12. Rxf4 {[%clk 0:00:49.6]} 12... Qc5+ {[%clk 0:00:44.6]} 13. d4 {[%clk 0:00:45.3]} 13... Qxd5 {[%clk 0:00:42.3]} 14. Nc3 {[%clk 0:00:44.3]} 14... Qc6 {[%clk 0:00:36.6]} 15. b4 {[%clk 0:00:43.8]} 15... Nc4 {[%clk 0:00:33.7]} 16. Rb1 {[%clk 0:00:41.8]} 16... h6 {[%clk 0:00:28.6]} 17. b5 {[%clk 0:00:40.9]} 17... Qd6 {[%clk 0:00:24.5]} 18. Bxc4 {[%clk 0:00:38.6]} 18... Be7 {[%clk 0:00:19.4]} 19. Rf3 {[%clk 0:00:36.5]} 19... Bg4 {[%clk 0:00:16.2]} 20. Bf4 {[%clk 0:00:31.3]} 20... Qg6 {[%clk 0:00:10.1]} 21. Bd3 {[%clk 0:00:27.8]} 21... Qf6 {[%clk 0:00:06.9]} 22. Bxc7 {[%clk 0:00:19.7]} 22... Bxf3 {[%clk 0:00:05]} 23. Qxf3 {[%clk 0:00:15.8]} 23... Qxf3 {[%clk 0:00:02.9]} 24. gxf3 {[%clk 0:00:15.5]} 24... Kxc7 {[%clk 0:00:02.3]} 25. Rc1 {[%clk 0:00:13.9]} 25... Kb8 {[%clk 0:00:00.6]} 26. Nd5 {[%clk 0:00:13.5]} 1-0

[Event "Live Chess"]
[Site "Chess.com"]
[Date "2011.01.31"]
[Round "-"]
[White "hipposcottimus"]
[Black "fabes"]
[Result "1-0"]
[CurrentPosition "4r1k1/6r1/p4qp1/2b5/3p1Q2/4p3/PP4PP/6RK b - -"]
[Timezone "UTC"]
[ECO "B20"]
[ECOUrl "https://www.chess.com/openings/Sicilian-Defense"]
[UTCDate "2011.01.31"]
[UTCTime "22:27:09"]
[WhiteElo "1645"]
[BlackElo "1597"]
[TimeControl "60"]
[Termination "hipposcottimus won on time"]
[StartTime "22:27:09"]
[EndDate "2011.01.31"]
[EndTime "22:29:20"]
[Link "https://www.chess.com/game/live/93437582"]

1. e4 {[%clk 0:01:00]} 1... c5 {[%clk 0:01:00]} 2. Bb5 {[%clk 0:00:52]} 2... a6 {[%clk 0:00:58.3]} 3. Be2 {[%clk 0:00:50.7]} 3... d6 {[%clk 0:00:56.3]} 4. Nf3 {[%clk 0:00:50.3]} 4... Nf6 {[%clk 0:00:55.6]} 5. c4 {[%clk 0:00:49.9]} 5... Nxe4 {[%clk 0:00:54]} 6. d3 {[%clk 0:00:49.7]} 6... Nf6 {[%clk 0:00:52.8]} 7. O-O {[%clk 0:00:49.4]} 7... e6 {[%clk 0:00:52.3]} 8. Bd2 {[%clk 0:00:49.1]} 8... Be7 {[%clk 0:00:51.8]} 9. Bc3 {[%clk 0:00:48.3]} 9... O-O {[%clk 0:00:50.8]} 10. d4 {[%clk 0:00:48]} 10... cxd4 {[%clk 0:00:48.9]} 11. Bxd4 {[%clk 0:00:47.7]} 11... Nc6 {[%clk 0:00:48.3]} 12. Nc3 {[%clk 0:00:46]} 12... Nxd4 {[%clk 0:00:47.4]} 13. Qxd4 {[%clk 0:00:45.8]} 13... Bd7 {[%clk 0:00:44.1]} 14. Qe3 {[%clk 0:00:45.4]} 14... Bc6 {[%clk 0:00:43.3]} 15. Nd4 {[%clk 0:00:44.9]} 15... e5 {[%clk 0:00:40.5]} 16. Nxc6 {[%clk 0:00:39]} 16... bxc6 {[%clk 0:00:39.8]} 17. Qg3 {[%clk 0:00:38.7]} 17... Qd7 {[%clk 0:00:34.6]} 18. Bd3 {[%clk 0:00:37.9]} 18... g6 {[%clk 0:00:33]} 19. f4 {[%clk 0:00:35.6]} 19... Rfe8 {[%clk 0:00:29.3]} 20. Ne4 {[%clk 0:00:32.5]} 20... Nxe4 {[%clk 0:00:27.3]} 21. Bxe4 {[%clk 0:00:31.1]} 21... d5 {[%clk 0:00:26.7]} 22. cxd5 {[%clk 0:00:29.2]} 22... cxd5 {[%clk 0:00:25.6]} 23. Bf3 {[%clk 0:00:28.9]} 23... e4 {[%clk 0:00:24.8]} 24. Bg4 {[%clk 0:00:28.5]} 24... Qb5 {[%clk 0:00:21]} 25. f5 {[%clk 0:00:28.2]} 25... Bc5+ {[%clk 0:00:19.1]} 26. Kh1 {[%clk 0:00:26.7]} 26... Qb6 {[%clk 0:00:15.1]} 27. fxg6 {[%clk 0:00:25.6]} 27... fxg6 {[%clk 0:00:14.2]} 28. Bh5 {[%clk 0:00:20]} 28... d4 {[%clk 0:00:11.6]} 29. Qf4 {[%clk 0:00:15.7]} 29... Ra7 {[%clk 0:00:08.3]} 30. Bxg6 {[%clk 0:00:10.3]} 30... hxg6 {[%clk 0:00:07.1]} 31. Qh6 {[%clk 0:00:10.1]} 31... Rg7 {[%clk 0:00:04.3]} 32. Rf6 {[%clk 0:00:07.7]} 32... Qxf6 {[%clk 0:00:01.4]} 33. Rg1 {[%clk 0:00:06.7]} 33... e3 {[%clk 0:00:00.3]} 34. Qf4 {[%clk 0:00:05.9]} 1-0

[Event "Live Chess"]
[Site "Chess.com"]
[Date "2011.01.31"]
[Round "-"]
[White "topsdown"]
[Black "hipposcottimus"]
[Result "1-0"]
[CurrentPosition "r1b2rk1/ppp3pp/8/4pp2/2P5/3P1P1q/PP1BQP1P/1K1R3R b - -"]
[Timezone "UTC"]
[ECO "C23"]
[ECOUrl "https://www.chess.com/openings/Bishops-Opening-2...Nc6-3.d3-Nf6"]
[UTCDate "2011.01.31"]
[UTCTime "22:22:59"]
[WhiteElo "1639"]
[BlackElo "1645"]
[TimeControl "60"]
[Termination "topsdown won on time"]
[StartTime "22:22:59"]
[EndDate "2011.01.31"]
[EndTime "22:23:46"]
[Link "https://www.chess.com/game/live/93436280"]

1. e4 {[%clk 0:01:00]} 1... e5 {[%clk 0:01:00]} 2. Bc4 {[%clk 0:00:59.6]} 2... Nc6 {[%clk 0:00:58.1]} 3. d3 {[%clk 0:00:59.2]} 3... Nf6 {[%clk 0:00:56.4]} 4. Nf3 {[%clk 0:00:58.7]} 4... d5 {[%clk 0:00:55.5]} 5. exd5 {[%clk 0:00:57.7]} 5... Nxd5 {[%clk 0:00:55.2]} 6. Bxd5 {[%clk 0:00:57.2]} 6... Qxd5 {[%clk 0:00:54.6]} 7. Nc3 {[%clk 0:00:55.5]} 7... Bb4 {[%clk 0:00:51.6]} 8. Bd2 {[%clk 0:00:51.4]} 8... Bxc3 {[%clk 0:00:51.1]} 9. Bxc3 {[%clk 0:00:50.7]} 9... O-O {[%clk 0:00:49.4]} 10. Bd2 {[%clk 0:00:49.9]} 10... Nd4 {[%clk 0:00:48.4]} 11. c4 {[%clk 0:00:48.6]} 11... Nxf3+ {[%clk 0:00:44.7]} 12. gxf3 {[%clk 0:00:43.5]} 12... Qe6 {[%clk 0:00:42.6]} 13. Qe2 {[%clk 0:00:42.4]} 13... Qh3 {[%clk 0:00:41.7]} 14. O-O-O {[%clk 0:00:40.5]} 14... f5 {[%clk 0:00:41.3]} 15. Kb1 {[%clk 0:00:39.2]} 1-0

[Event "Live Chess"]
[Site "Chess.com"]
[Date "2011.01.31"]
[Round "-"]
[White "SavageChezz"]
[Black "hipposcottimus"]
[Result "1-0"]
[CurrentPosition "4k3/8/8/2PPB2p/7P/1p3NK1/8/8 b - -"]
[Timezone "UTC"]
[ECO "A03"]
[ECOUrl "https://www.chess.com/openings/Birds-Opening-Dutch-Variation"]
[UTCDate "2011.01.31"]
[UTCTime "22:18:53"]
[WhiteElo "2201"]
[BlackElo "1654"]
[TimeControl "60"]
[Termination "SavageChezz won on time"]
[StartTime "22:18:53"]
[EndDate "2011.01.31"]
[EndTime "22:21:12"]
[Link "https://www.chess.com/game/live/93435253"]

1. f4 {[%clk 0:01:00]} 1... d5 {[%clk 0:01:00]} 2. d3 {[%clk 0:00:59.9]} 2... Bg4 {[%clk 0:00:59.4]} 3. Nf3 {[%clk 0:00:59.7]} 3... Bxf3 {[%clk 0:00:58.1]} 4. exf3 {[%clk 0:00:59.6]} 4... f5 {[%clk 0:00:57.7]} 5. g3 {[%clk 0:00:58.9]} 5... e6 {[%clk 0:00:57.5]} 6. Bg2 {[%clk 0:00:58.8]} 6... Nf6 {[%clk 0:00:57.2]} 7. O-O {[%clk 0:00:58.7]} 7... Bd6 {[%clk 0:00:55.7]} 8. Re1 {[%clk 0:00:58.1]} 8... Nc6 {[%clk 0:00:55.4]} 9. h3 {[%clk 0:00:57.6]} 9... O-O {[%clk 0:00:54.5]} 10. Be3 {[%clk 0:00:56.9]} 10... Ne7 {[%clk 0:00:53.8]} 11. Bf2 {[%clk 0:00:55.9]} 11... c5 {[%clk 0:00:53.3]} 12. c3 {[%clk 0:00:55.1]} 12... d4 {[%clk 0:00:52.8]} 13. c4 {[%clk 0:00:53.9]} 13... Ng6 {[%clk 0:00:50.2]} 14. Qd2 {[%clk 0:00:53.1]} 14... e5 {[%clk 0:00:48.1]} 15. fxe5 {[%clk 0:00:51.9]} 15... Bxe5 {[%clk 0:00:47.7]} 16. f4 {[%clk 0:00:51.3]} 16... Bd6 {[%clk 0:00:44.9]} 17. Qe2 {[%clk 0:00:50.5]} 17... Rc8 {[%clk 0:00:43.8]} 18. Qe6+ {[%clk 0:00:49.5]} 18... Kh8 {[%clk 0:00:42.4]} 19. Qxf5 {[%clk 0:00:48.7]} 19... Rc6 {[%clk 0:00:42.1]} 20. Re6 {[%clk 0:00:46.8]} 20... Bxf4 {[%clk 0:00:35.5]} 21. Rxc6 {[%clk 0:00:43.7]} 21... bxc6 {[%clk 0:00:35.1]} 22. gxf4 {[%clk 0:00:42.2]} 22... Ne7 {[%clk 0:00:28.9]} 23. Qxc5 {[%clk 0:00:41.2]} 23... Nd7 {[%clk 0:00:24.3]} 24. Qxd4 {[%clk 0:00:39.6]} 24... Ng6 {[%clk 0:00:23.9]} 25. Bg3 {[%clk 0:00:37.6]} 25... Qe7 {[%clk 0:00:21.2]} 26. Nc3 {[%clk 0:00:36.1]} 26... Nf6 {[%clk 0:00:20.3]} 27. Re1 {[%clk 0:00:33.3]} 27... Qf7 {[%clk 0:00:18.9]} 28. f5 {[%clk 0:00:32.4]} 28... c5 {[%clk 0:00:18.4]} 29. fxg6 {[%clk 0:00:30.3]} 29... cxd4 {[%clk 0:00:16.5]} 30. gxf7 {[%clk 0:00:29.8]} 30... Rxf7 {[%clk 0:00:16.1]} 31. Nd5 {[%clk 0:00:28]} 31... Ng8 {[%clk 0:00:15.7]} 32. Re8 {[%clk 0:00:26]} 32... Rb7 {[%clk 0:00:15.4]} 33. Bd6 {[%clk 0:00:23.7]} 33... Rxb2 {[%clk 0:00:13.6]} 34. Ne7 {[%clk 0:00:22.9]} 34... Rb1+ {[%clk 0:00:13.1]} 35. Kh2 {[%clk 0:00:22.3]} 35... h6 {[%clk 0:00:12.8]} 36. Rxg8+ {[%clk 0:00:20.7]} 36... Kh7 {[%clk 0:00:12.5]} 37. Re8 {[%clk 0:00:19.8]} 37... h5 {[%clk 0:00:09.7]} 38. Nf5 {[%clk 0:00:18.8]} 38... Kg6 {[%clk 0:00:08.5]} 39. Nh4+ {[%clk 0:00:16.9]} 39... Kf7 {[%clk 0:00:06.9]} 40. Nf3 {[%clk 0:00:16.8]} 40... Kxe8 {[%clk 0:00:06.1]} 41. Be5 {[%clk 0:00:16.3]} 41... Rb2 {[%clk 0:00:05.4]} 42. Bxd4 {[%clk 0:00:15.4]} 42... Rxa2 {[%clk 0:00:05.1]} 43. Bxg7 {[%clk 0:00:14.5]} 43... Ra3 {[%clk 0:00:04.7]} 44. d4 {[%clk 0:00:12.6]} 44... Rc3 {[%clk 0:00:03.9]} 45. c5 {[%clk 0:00:11.5]} 45... Rc4 {[%clk 0:00:03]} 46. Be5 {[%clk 0:00:11]} 46... Rc3 {[%clk 0:00:02.4]} 47. h4 {[%clk 0:00:10.3]} 47... Ra3 {[%clk 0:00:01.8]} 48. Kg3 {[%clk 0:00:09.7]} 48... a5 {[%clk 0:00:01.5]} 49. Bh3 {[%clk 0:00:09.2]} 49... a4 {[%clk 0:00:01.2]} 50. Be6 {[%clk 0:00:08.8]} 50... Rb3 {[%clk 0:00:00.6]} 51. Bxb3 {[%clk 0:00:07.7]} 51... axb3 {[%clk 0:00:00.2]} 52. d5 {[%clk 0:00:07.5]} 1-0

[Event "Live Chess"]
[Site "Chess.com"]
[Date "2011.01.31"]
[Round "-"]
[White "hipposcottimus"]
[Black "SavageChezz"]
[Result "0-1"]
[CurrentPosition "r4rk1/1p1nnpp1/pbp1p2p/4P3/1PP5/P1N2NB1/5PPP/R4RK1 w - -"]
[Timezone "UTC"]
[ECO "B01"]
[ECOUrl "https://www.chess.com/openings/Scandinavian-Defense-Mieses-Kotrc-Variation-3.Nc3-Qe5-4.Be2"]
[UTCDate "2011.01.31"]
[UTCTime "22:18:11"]
[WhiteElo "1654"]
[BlackElo "2201"]
[TimeControl "60"]
[Termination "SavageChezz won on time"]
[StartTime "22:18:11"]
[EndDate "2011.01.31"]
[EndTime "22:18:42"]
[Link "https://www.chess.com/game/live/93434852"]

1. e4 {[%clk 0:01:00]} 1... d5 {[%clk 0:01:00]} 2. exd5 {[%clk 0:00:58.5]} 2... Qxd5 {[%clk 0:00:59.9]} 3. Nc3 {[%clk 0:00:58.1]} 3... Qe5+ {[%clk 0:00:59.3]} 4. Be2 {[%clk 0:00:57.9]} 4... Bg4 {[%clk 0:00:58.5]} 5. d4 {[%clk 0:00:57.6]} 5... Bxe2 {[%clk 0:00:57.7]} 6. dxe5 {[%clk 0:00:54.7]} 6... Bxd1 {[%clk 0:00:56.5]} 7. Nxd1 {[%clk 0:00:54.1]} 7... e6 {[%clk 0:00:55.9]} 8. Nf3 {[%clk 0:00:53.8]} 8... c6 {[%clk 0:00:55.4]} 9. O-O {[%clk 0:00:53.6]} 9... Nd7 {[%clk 0:00:54.8]} 10. Bf4 {[%clk 0:00:51.5]} 10... Bc5 {[%clk 0:00:53.8]} 11. c4 {[%clk 0:00:49.5]} 11... Ne7 {[%clk 0:00:53]} 12. Nc3 {[%clk 0:00:48.8]} 12... O-O {[%clk 0:00:51.9]} 13. a3 {[%clk 0:00:48.4]} 13... h6 {[%clk 0:00:51.4]} 14. b4 {[%clk 0:00:47.8]} 14... Bb6 {[%clk 0:00:50.7]} 15. Bg3 {[%clk 0:00:47.3]} 15... a6 {[%clk 0:00:49.8]} 0-1

[Event "Live Chess"]
[Site "Chess.com"]
[Date "2011.01.31"]
[Round "-"]
[White "hipposcottimus"]
[Black "topsdown"]
[Result "1-0"]
[CurrentPosition "2krr3/1Qnq3p/2p2p2/6p1/2PP1B2/5N2/P4PPP/1R4K1 b - -"]
[Timezone "UTC"]
[ECO "B01"]
[ECOUrl "https://www.chess.com/openings/Scandinavian-Defense-Mieses-Kotrc-Variation-3.Nc3-Qd8"]
[UTCDate "2011.01.31"]
[UTCTime "22:15:43"]
[WhiteElo "1654"]
[BlackElo "1637"]
[TimeControl "60"]
[Termination "hipposcottimus won by checkmate"]
[StartTime "22:15:43"]
[EndDate "2011.01.31"]
[EndTime "22:17:04"]
[Link "https://www.chess.com/game/live/93434378"]

1. e4 {[%clk 0:01:00]} 1... d5 {[%clk 0:01:00]} 2. exd5 {[%clk 0:00:58.7]} 2... Qxd5 {[%clk 0:00:59.7]} 3. Nc3 {[%clk 0:00:58.4]} 3... Qd8 {[%clk 0:00:59.4]} 4. Be2 {[%clk 0:00:58.1]} 4... Bf5 {[%clk 0:00:58.7]} 5. d4 {[%clk 0:00:57.8]} 5... e6 {[%clk 0:00:58.2]} 6. Nf3 {[%clk 0:00:57.2]} 6... Nc6 {[%clk 0:00:57.7]} 7. Be3 {[%clk 0:00:56.8]} 7... Nb4 {[%clk 0:00:57.2]} 8. O-O {[%clk 0:00:56.5]} 8... Nxc2 {[%clk 0:00:56.5]} 9. Bd3 {[%clk 0:00:52.1]} 9... Nxa1 {[%clk 0:00:55]} 10. Bxf5 {[%clk 0:00:51.2]} 10... exf5 {[%clk 0:00:52.6]} 11. Qxa1 {[%clk 0:00:50.8]} 11... Bb4 {[%clk 0:00:51.5]} 12. Re1 {[%clk 0:00:50.5]} 12... Bxc3 {[%clk 0:00:50.5]} 13. bxc3 {[%clk 0:00:50.2]} 13... Ne7 {[%clk 0:00:49.3]} 14. Bg5 {[%clk 0:00:49.4]} 14... f6 {[%clk 0:00:46]} 15. Be3 {[%clk 0:00:41.2]} 15... Qd7 {[%clk 0:00:44.8]} 16. Qb2 {[%clk 0:00:40.8]} 16... O-O-O {[%clk 0:00:43.4]} 17. Qa3 {[%clk 0:00:38.9]} 17... Nd5 {[%clk 0:00:40.8]} 18. Qxa7 {[%clk 0:00:33.7]} 18... c6 {[%clk 0:00:38.5]} 19. Bd2 {[%clk 0:00:30.3]} 19... f4 {[%clk 0:00:36.3]} 20. c4 {[%clk 0:00:29.3]} 20... Nc7 {[%clk 0:00:34.2]} 21. Bxf4 {[%clk 0:00:27.8]} 21... Rhe8 {[%clk 0:00:30]} 22. Rb1 {[%clk 0:00:23.7]} 22... g5 {[%clk 0:00:27.4]} 23. Qxb7# {[%clk 0:00:22.9]} 1-0

[Event "Live Chess"]
[Site "Chess.com"]
[Date "2011.01.31"]
[Round "-"]
[White "burns123"]
[Black "hipposcottimus"]
[Result "0-1"]
[CurrentPosition "6k1/4R2p/p1B2p2/1p6/7P/N2P2P1/P4P2/6K1 w - -"]
[Timezone "UTC"]
[ECO "A07"]
[ECOUrl "https://www.chess.com/openings/Kings-Indian-Attack-Keres-Variation-3.Bg2-e6"]
[UTCDate "2011.01.31"]
[UTCTime "21:45:33"]
[WhiteElo "1612"]
[BlackElo "1646"]
[TimeControl "60"]
[Termination "hipposcottimus won on time"]
[StartTime "21:45:33"]
[EndDate "2011.01.31"]
[EndTime "21:47:39"]
[Link "https://www.chess.com/game/live/93426049"]

1. Nf3 {[%clk 0:01:00]} 1... d5 {[%clk 0:01:00]} 2. g3 {[%clk 0:00:59.6]} 2... Bg4 {[%clk 0:00:59.3]} 3. Bg2 {[%clk 0:00:59]} 3... e6 {[%clk 0:00:58]} 4. h3 {[%clk 0:00:58.3]} 4... Bf5 {[%clk 0:00:55.9]} 5. O-O {[%clk 0:00:56.8]} 5... Bd6 {[%clk 0:00:52]} 6. Nd4 {[%clk 0:00:55.8]} 6... Ne7 {[%clk 0:00:49.6]} 7. Nxf5 {[%clk 0:00:54.6]} 7... Nxf5 {[%clk 0:00:49.2]} 8. d3 {[%clk 0:00:53.3]} 8... O-O {[%clk 0:00:48.7]} 9. h4 {[%clk 0:00:49.5]} 9... Ne7 {[%clk 0:00:48.3]} 10. Bg5 {[%clk 0:00:48]} 10... f6 {[%clk 0:00:47.4]} 11. Be3 {[%clk 0:00:46.6]} 11... e5 {[%clk 0:00:45]} 12. c4 {[%clk 0:00:45.6]} 12... d4 {[%clk 0:00:44.1]} 13. Bd2 {[%clk 0:00:43.4]} 13... Nbc6 {[%clk 0:00:42.6]} 14. b4 {[%clk 0:00:41.1]} 14... Ng6 {[%clk 0:00:42.3]} 15. Bd5+ {[%clk 0:00:38.2]} 15... Kh8 {[%clk 0:00:40.2]} 16. c5 {[%clk 0:00:37.2]} 16... Be7 {[%clk 0:00:38.4]} 17. b5 {[%clk 0:00:35]} 17... Nb8 {[%clk 0:00:36.9]} 18. Bxb7 {[%clk 0:00:33.7]} 18... c6 {[%clk 0:00:35.1]} 19. Bxa8 {[%clk 0:00:32.1]} 19... cxb5 {[%clk 0:00:33.3]} 20. Bg2 {[%clk 0:00:30.4]} 20... Bxc5 {[%clk 0:00:32.3]} 21. Bc1 {[%clk 0:00:26.4]} 21... a6 {[%clk 0:00:31.6]} 22. Na3 {[%clk 0:00:25.6]} 22... f5 {[%clk 0:00:25.6]} 23. Bb2 {[%clk 0:00:24.7]} 23... Re8 {[%clk 0:00:23.7]} 24. Rc1 {[%clk 0:00:23]} 24... e4 {[%clk 0:00:23.3]} 25. Rxc5 {[%clk 0:00:21.5]} 25... exd3 {[%clk 0:00:22.5]} 26. exd3 {[%clk 0:00:20.3]} 26... Rf8 {[%clk 0:00:20.7]} 27. Qf3 {[%clk 0:00:13.6]} 27... Nd7 {[%clk 0:00:20.3]} 28. Rxf5 {[%clk 0:00:12.1]} 28... Rxf5 {[%clk 0:00:18.4]} 29. Qxf5 {[%clk 0:00:11.1]} 29... Ne7 {[%clk 0:00:16.9]} 30. Qg5 {[%clk 0:00:08.4]} 30... Qf8 {[%clk 0:00:16.1]} 31. Bxd4 {[%clk 0:00:06.8]} 31... Ng6 {[%clk 0:00:15]} 32. Bc6 {[%clk 0:00:04.4]} 32... Nf6 {[%clk 0:00:14.5]} 33. Bxf6 {[%clk 0:00:03.1]} 33... Qxf6 {[%clk 0:00:13.3]} 34. Qxf6 {[%clk 0:00:01.6]} 34... gxf6 {[%clk 0:00:13.1]} 35. Re1 {[%clk 0:00:01.3]} 35... Ne7 {[%clk 0:00:12.8]} 36. Rxe7 {[%clk 0:00:00.6]} 36... Kg8 {[%clk 0:00:11.5]} 0-1

[Event "Live Chess"]
[Site "Chess.com"]
[Date "2011.01.31"]
[Round "-"]
[White "darijan"]
[Black "hipposcottimus"]
[Result "0-1"]
[CurrentPosition "r4k2/ppp2ppB/3b4/8/2P3nR/2N2bP1/PP1P1P2/R1B1r1K1 w - -"]
[Timezone "UTC"]
[ECO "C44"]
[ECOUrl "https://www.chess.com/openings/Ponziani-Opening-3...d5"]
[UTCDate "2011.01.31"]
[UTCTime "20:05:43"]
[WhiteElo "1394"]
[BlackElo "1405"]
[TimeControl "600"]
[Termination "hipposcottimus won by checkmate"]
[StartTime "20:05:43"]
[EndDate "2011.01.31"]
[EndTime "20:15:12"]
[Link "https://www.chess.com/game/live/93396058"]

1. e4 {[%clk 0:10:00]} 1... e5 {[%clk 0:10:00]} 2. Nf3 {[%clk 0:09:59]} 2... Nc6 {[%clk 0:09:58.2]} 3. c3 {[%clk 0:09:55.7]} 3... d5 {[%clk 0:09:49.2]} 4. Bd3 {[%clk 0:09:39.4]} 4... Nf6 {[%clk 0:09:41.6]} 5. exd5 {[%clk 0:09:35.3]} 5... Qxd5 {[%clk 0:09:29.8]} 6. O-O {[%clk 0:09:23.6]} 6... Bd6 {[%clk 0:09:15]} 7. h3 {[%clk 0:09:20.1]} 7... e4 {[%clk 0:09:13.1]} 8. c4 {[%clk 0:09:03.1]} 8... Qh5 {[%clk 0:08:37.8]} 9. Re1 {[%clk 0:08:25.7]} 9... Bxh3 {[%clk 0:08:06.7]} 10. Bxe4 {[%clk 0:07:26.7]} 10... O-O {[%clk 0:07:49.3]} 11. g3 {[%clk 0:05:24.1]} 11... Bg4 {[%clk 0:07:37]} 12. Bd3 {[%clk 0:05:13.6]} 12... Ne5 {[%clk 0:07:31.2]} 13. Rxe5 {[%clk 0:04:55.6]} 13... Bxf3 {[%clk 0:07:24]} 14. Rxh5 {[%clk 0:04:44.4]} 14... Bxd1 {[%clk 0:07:21.2]} 15. Rh1 {[%clk 0:04:38]} 15... Bf3 {[%clk 0:07:15.6]} 16. Rh2 {[%clk 0:04:35.2]} 16... Rfe8 {[%clk 0:07:06.3]} 17. Nc3 {[%clk 0:04:11.6]} 17... Ng4 {[%clk 0:06:55.3]} 18. Bxh7+ {[%clk 0:04:00.6]} 18... Kf8 {[%clk 0:06:52.5]} 19. Rh4 {[%clk 0:03:50.2]} 19... Re1# {[%clk 0:06:50.8]} 0-1

[Event "Live Chess"]
[Site "Chess.com"]
[Date "2011.01.31"]
[Round "-"]
[White "hipposcottimus"]
[Black "darijan"]
[Result "0-1"]
[CurrentPosition "7R/8/p1pr2k1/7p/2PB4/N6P/PP2r3/7K w - -"]
[Timezone "UTC"]
[ECO "C55"]
[ECOUrl "https://www.chess.com/openings/Italian-Game-Anti-Fried-Liver-Defense"]
[UTCDate "2011.01.31"]
[UTCTime "19:45:20"]
[WhiteElo "1397"]
[BlackElo "1402"]
[TimeControl "600"]
[Termination "darijan won on time"]
[StartTime "19:45:20"]
[EndDate "2011.01.31"]
[EndTime "20:05:13"]
[Link "https://www.chess.com/game/live/93389301"]

1. e4 {[%clk 0:10:00]} 1... e5 {[%clk 0:10:00]} 2. Nf3 {[%clk 0:09:58]} 2... Nc6 {[%clk 0:09:56.7]} 3. Bc4 {[%clk 0:09:54.1]} 3... h6 {[%clk 0:09:50.7]} 4. d4 {[%clk 0:09:52.2]} 4... d6 {[%clk 0:09:39.3]} 5. dxe5 {[%clk 0:09:50.6]} 5... dxe5 {[%clk 0:09:38.2]} 6. Qxd8+ {[%clk 0:09:37.4]} 6... Nxd8 {[%clk 0:09:37]} 7. Nxe5 {[%clk 0:09:35.3]} 7... Be6 {[%clk 0:09:23.6]} 8. Bd3 {[%clk 0:09:12.7]} 8... Bd6 {[%clk 0:09:21.2]} 9. f4 {[%clk 0:09:10.1]} 9... Nc6 {[%clk 0:08:40.3]} 10. Bb5 {[%clk 0:09:03.5]} 10... Ne7 {[%clk 0:08:22.8]} 11. O-O {[%clk 0:06:17.6]} 11... O-O-O {[%clk 0:07:19.8]} 12. Nxc6 {[%clk 0:05:53.4]} 12... bxc6 {[%clk 0:07:12]} 13. Ba6+ {[%clk 0:05:49.8]} 13... Kb8 {[%clk 0:07:05.9]} 14. Na3 {[%clk 0:05:42.2]} 14... Bc5+ {[%clk 0:06:37.6]} 15. Kh1 {[%clk 0:05:39.7]} 15... Rd4 {[%clk 0:06:29.6]} 16. Be3 {[%clk 0:05:27.5]} 16... Ra4 {[%clk 0:06:09.8]} 17. Bxc5 {[%clk 0:05:25.4]} 17... Rxa6 {[%clk 0:06:06.8]} 18. Bxe7 {[%clk 0:05:24.4]} 18... Re8 {[%clk 0:06:00.7]} 19. Bb4 {[%clk 0:04:51.3]} 19... Ra4 {[%clk 0:05:35.4]} 20. Bc3 {[%clk 0:04:35.2]} 20... Rxe4 {[%clk 0:05:30]} 21. Bxg7 {[%clk 0:04:26.3]} 21... h5 {[%clk 0:05:13.9]} 22. Be5 {[%clk 0:04:08.8]} 22... Bd5 {[%clk 0:05:01.2]} 23. c4 {[%clk 0:04:03.5]} 23... Be6 {[%clk 0:04:48.8]} 24. Rf3 {[%clk 0:03:56.2]} 24... Bg4 {[%clk 0:04:43]} 25. Rb3+ {[%clk 0:03:52.9]} 25... Kc8 {[%clk 0:04:36.8]} 26. h3 {[%clk 0:03:00.2]} 26... Be6 {[%clk 0:04:14.4]} 27. Rc1 {[%clk 0:02:52.9]} 27... Rf8 {[%clk 0:04:02.3]} 28. Bf6 {[%clk 0:02:05.2]} 28... Rxf4 {[%clk 0:03:56.6]} 29. Be5 {[%clk 0:01:29.5]} 29... Re4 {[%clk 0:03:51.5]} 30. Bh2 {[%clk 0:01:26.5]} 30... Rg8 {[%clk 0:03:13.4]} 31. Bg1 {[%clk 0:01:20.1]} 31... a6 {[%clk 0:03:05]} 32. Ba7 {[%clk 0:01:15.4]} 32... Kd7 {[%clk 0:02:18.6]} 33. Rd1+ {[%clk 0:01:07.6]} 33... Ke7 {[%clk 0:02:11.5]} 34. Bc5+ {[%clk 0:01:05.7]} 34... Kf6 {[%clk 0:02:09.3]} 35. Bd4+ {[%clk 0:01:04.9]} 35... Kg6 {[%clk 0:02:05.7]} 36. Rg3+ {[%clk 0:01:03.9]} 36... Kh7 {[%clk 0:01:48.3]} 37. Rb3 {[%clk 0:00:34.4]} 37... Re2 {[%clk 0:01:38.8]} 38. Rg1 {[%clk 0:00:29.1]} 38... Bf5 {[%clk 0:01:24.6]} 39. Rb7 {[%clk 0:00:25.9]} 39... Be4 {[%clk 0:01:21.1]} 40. Rxc7 {[%clk 0:00:17.1]} 40... Bxg2+ {[%clk 0:01:13.5]} 41. Rxg2 {[%clk 0:00:15.5]} 41... Rgxg2 {[%clk 0:01:09.3]} 42. Rxf7+ {[%clk 0:00:15.2]} 42... Kh6 {[%clk 0:00:58.8]} 43. Rf6+ {[%clk 0:00:14.1]} 43... Rg6 {[%clk 0:00:56.5]} 44. Rf8 {[%clk 0:00:07.9]} 44... Re1+ {[%clk 0:00:48.9]} 45. Kh2 {[%clk 0:00:06.2]} 45... Re2+ {[%clk 0:00:47]} 46. Kh1 {[%clk 0:00:05.3]} 46... Rd6 {[%clk 0:00:30.6]} 47. Rh8+ {[%clk 0:00:03.1]} 47... Kg6 {[%clk 0:00:28.2]} 0-1